[Event "Chigorin Memorial 2019"]
[Site "Saint Petersburg"]
[Date "2019.10.11"]
[Round "7.6"]
[White "Nesterov, Arseniy"]
[Black "Smirin, Ilia"]
[Result "1/2-1/2"]
[ECO "E62"]
[WhiteElo "2484"]
[BlackElo "2599"]
[Annotator "ChessBase"]
[PlyCount "81"]
[EventDate "2019.10.05"]
[EventType "swiss"]
[EventCountry "RUS"]
[SourceTitle "playchess.com"]
[Source "ChessBase"]
[SourceQuality "1"]
[TimeControl "5400+30"]

1. d4 {[%emt 0:00:00]} Nf6 {[%emt 0:00:44]} 2. c4 {[%emt 0:00:00]} g6 {[%emt 0:00:06]} 3. Nf3 {[%emt 0:00:00]} Bg7 {[%emt 0:00:26]} 4. g3 {[%emt 0:00:03]} O-O {[%emt 0:02:06]} 5. Bg2 {[%emt 0:00:06]} d6 {[%emt 0:00:34]} 6. Nc3 {[%emt 0:00:41]} Nc6 {[%emt 0:01:22]} 7. O-O {[%emt 0:00:40]} e5 {[%emt 0:00:26]} 8. d5 {[%emt 0:03:18]} Nb8 {[%emt 0:00:23]} 9. e4 {[%emt 0:01:16]} a5 {[%emt 0:01:08]} 10. Ne1 {[%emt 0:01:01]} Na6 {[%emt 0:01:04]} 11. Nd3 {[%emt 0:01:14]} b6 {[%emt 0:04:59]} 12. b3 {[%emt 0:11:55]} Nd7 {[%emt 0:05:24]} 13. a3 {[%emt 0:04:18]} Nac5 {[%emt 0:02:35]} 14. Rb1 {[%emt 0:00:56]} Nxd3 {[%emt 0:03:02]} 15. Qxd3 {[%emt 0:00:11]} f5 {[%emt 0:00:02]} 16. b4 {[%emt 0:03:04]} f4 {[%emt 0:03:18]} 17. Bd2 {[%emt 0:05:24]} h5 {[%emt 0:02:30]} 18. f3 {[%emt 0:02:57]} g5 {[%emt 0:03:55]} 19. Be1 {[%emt 0:11:26]} Rf6 {[%emt 0:19:31]} 20. Qe2 {[%emt 0:16:07]} Nf8 {[%emt 0:02:40]} 21. c5 {[%emt 0:03:32]} axb4 {[%emt 0:00:37]} 22. axb4 {[%emt 0:00:16]} bxc5 {[%emt 0:08:59]} 23. bxc5 {[%emt 0:00:08]} Ng6 {[%emt 0:02:42]} 24. Bf2 {[%emt 0:04:55]} fxg3 {[%emt 0:05:20]} 25. hxg3 {[%emt 0:00:05]} h4 {[%emt 0:00:05]} 26. Ra1 {[%emt 0:00:28]} Rxa1 {[%emt 0:00:21]} 27. Rxa1 {[%emt 0:00:01]} hxg3 {[%emt 0:00:10]} 28. Bxg3 {[%emt 0:00:06]} Nf4 {[%emt 0:00:15]} 29. Bxf4 {[%emt 0:08:48]} exf4 {[%emt 0:00:42]} 30. Ra8 {[%emt 0:00:49]} Rf8 {[%emt 0:00:09]} 31. Nb5 {[%emt 0:02:01]} g4 {[%emt 0:03:20]} 32. fxg4 {[%emt 0:03:42]} dxc5 {[%emt 0:04:40]} 33. Bf3 {[%emt 0:05:41]} Qh4 {[%emt 0:01:30]} 34. Qf2 {[%emt 0:03:25]} Qg5 {[%emt 0:02:19]} 35. Kf1 {[%emt 0:03:20]} Qh6 {[%emt 0:02:51]} 36. Qxc5 {[%emt 0:02:23]} Ba6 {[%emt 0:04:48]} 37. Rxf8+ {[%emt 0:02:47]} Bxf8 {[%emt 0:00:04]} 38. d6 {[%emt 0:00:24]} Bxd6 {[%emt 0:03:00]} 39. Qd5+ {[%emt 0:00:18]} Kg7 {[%emt 0:00:11]} 40. Kg2 {[%emt 0:01:31]} Qh4 {[%emt 0:00:55]} 41. Nd4 {[%emt 0:00:08]} 1/2-1/2

[Event "Chigorin Memorial 2019"]
[Site "Saint Petersburg"]
[Date "2019.10.11"]
[Round "7.7"]
[White "Kokarev, Dmitry"]
[Black "Khegay, Dmitriy"]
[Result "1-0"]
[ECO "C18"]
[WhiteElo "2593"]
[BlackElo "2509"]
[Annotator "ChessBase"]
[PlyCount "149"]
[EventDate "2019.10.05"]
[EventType "swiss"]
[EventCountry "RUS"]
[SourceTitle "playchess.com"]
[Source "ChessBase"]
[SourceQuality "1"]
[TimeControl "5400+30"]

1. e4 {[%emt 0:00:00]} e6 {[%emt 0:00:00]} 2. d4 {[%emt 0:00:00]} d5 {[%emt 0:00:00]} 3. Nc3 {[%emt 0:00:08]} Bb4 {[%emt 0:00:00]} 4. e5 {[%emt 0:00:10]} c5 {[%emt 0:00:00]} 5. a3 {[%emt 0:00:08]} Bxc3+ {[%emt 0:00:00]} 6. bxc3 {[%emt 0:00:07]} Qa5 {[%emt 0:00:04]} 7. Bd2 {[%emt 0:00:12]} Qa4 {[%emt 0:00:04]} 8. Qb1 {[%emt 0:00:11]} c4 {[%emt 0:00:08]} 9. Ne2 {[%emt 0:00:38]} Nc6 {[%emt 0:00:13]} 10. Nf4 {[%emt 0:00:28]} Bd7 {[%emt 0:04:49]} 11. g3 {[%emt 0:00:19]} O-O-O {[%emt 0:01:14]} 12. Bh3 {[%emt 0:02:14]} Nge7 {[%emt 0:09:18]} 13. Qd1 {[%emt 0:04:50]} Kb8 {[%emt 0:03:12]} 14. O-O {[%emt 0:00:11]} Ka8 {[%emt 0:03:31]} 15. Nh5 {[%emt 0:07:22]} Rhg8 {[%emt 0:03:06]} 16. Kh1 {[%emt 0:02:19]} Rdf8 {[%emt 0:02:10]} 17. Bg5 {[%emt 0:02:47]} Nc8 {[%emt 0:08:19]} 18. g4 {[%emt 0:02:32]} Nb6 {[%emt 0:08:15]} 19. f4 {[%emt 0:01:00]} Qa5 {[%emt 0:00:10]} 20. Rf3 {[%emt 0:00:29]} Na4 {[%emt 0:01:56]} 21. Qd2 {[%emt 0:02:27]} Qb6 {[%emt 0:03:52]} 22. f5 {[%emt 0:01:48]} h6 {[%emt 0:02:59]} 23. Bh4 {[%emt 0:07:20]} Qb2 {[%emt 0:00:42]} 24. Qc1 {[%emt 0:00:46]} Qxc1+ {[%emt 0:00:29]} 25. Rxc1 {[%emt 0:00:06]} a6 {[%emt 0:00:18]} 26. Be1 {[%emt 0:08:50]} Na7 {[%emt 0:08:18]} 27. Bd2 {[%emt 0:02:54]} Nb5 {[%emt 0:00:09]} 28. Ra1 {[%emt 0:00:07]} Rc8 {[%emt 0:04:18]} 29. f6 {[%emt 0:06:31]} g6 {[%emt 0:02:31]} 30. Nf4 {[%emt 0:04:04]} Rh8 {[%emt 0:05:57]} 31. Bg2 {[%emt 0:06:35]} Rcg8 {[%emt 0:01:06]} 32. Rh3 {[%emt 0:01:04]} Rh7 {[%emt 0:05:21]} 33. Kg1 {[%emt 0:01:58]} Rgh8 {[%emt 0:03:28]} 34. Kf2 {[%emt 0:00:51]} Bc6 {[%emt 0:02:24]} 35. Ne2 {[%emt 0:01:40]} Ka7 {[%emt 0:01:57]} 36. Bf3 {[%emt 0:03:12]} a5 {[%emt 0:00:15]} 37. Ke1 {[%emt 0:01:21]} Nc7 {[%emt 0:09:52]} 38. Kd1 {[%emt 0:00:37]} Na6 {[%emt 0:03:05]} 39. Rh4 {[%emt 0:00:58]} Nb8 {[%emt 0:00:22]} 40. Be3 {[%emt 0:01:31]} Nd7 {[%emt 0:01:12]} 41. Kd2 {[%emt 0:00:35]} Nf8 {[%emt 0:00:06]} 42. Rg1 {[%emt 0:00:46]} Nb6 {[%emt 0:00:19]} 43. Rg3 {[%emt 0:00:49]} Nbd7 {[%emt 0:00:14]} 44. Rgh3 {[%emt 0:00:52]} g5 {[%emt 0:00:05]} 45. Rh5 {[%emt 0:00:18]} Ka6 {[%emt 0:00:44]} 46. Kc1 {[%emt 0:04:04]} b5 {[%emt 0:00:33]} 47. Ng1 {[%emt 0:01:13]} Kb7 {[%emt 0:02:37]} 48. Be2 {[%emt 0:03:00]} Nb6 {[%emt 0:02:18]} 49. Nf3 {[%emt 0:01:00]} Be8 {[%emt 0:01:18]} 50. Kd2 {[%emt 0:05:30]} Nbd7 {[%emt 0:00:08]} 51. Ne1 {[%emt 0:01:23]} Nb6 {[%emt 0:01:01]} 52. Ng2 {[%emt 0:01:25]} Nbd7 {[%emt 0:00:27]} 53. Bf2 {[%emt 0:03:10]} Ng6 {[%emt 0:00:10]} 54. Re3 {[%emt 0:00:15]} Ndf8 {[%emt 0:00:26]} 55. h4 {[%emt 0:00:23]} gxh4 {[%emt 0:00:38]} 56. Bxh4 {[%emt 0:00:08]} Nxh4 {[%emt 0:00:09]} 57. Nxh4 {[%emt 0:00:10]} Rg8 {[%emt 0:00:46]} 58. Ng2 {[%emt 0:01:30]} Kc7 {[%emt 0:01:06]} 59. Reh3 {[%emt 0:00:11]} Rgh8 {[%emt 0:00:03]} 60. Ne3 {[%emt 0:01:35]} Bc6 {[%emt 0:00:50]} 61. Rh1 {[%emt 0:01:54]} Be8 {[%emt 0:00:08]} 62. Nd1 {[%emt 0:00:09]} Bc6 {[%emt 0:00:13]} 63. Nf2 {[%emt 0:00:06]} Be8 {[%emt 0:00:04]} 64. Ke3 {[%emt 0:00:07]} Bc6 {[%emt 0:00:46]} 65. g5 {[%emt 0:00:49]} hxg5 {[%emt 0:00:20]} 66. Rxh7 {[%emt 0:00:05]} Rxh7 {[%emt 0:00:42]} 67. Rxh7 {[%emt 0:00:05]} Nxh7 {[%emt 0:00:03]} 68. Bh5 {[%emt 0:00:06]} Be8 {[%emt 0:00:37]} 69. Ng4 {[%emt 0:00:05]} Kd7 {[%emt 0:00:15]} 70. Kf3 {[%emt 0:01:28]} Kc7 {[%emt 0:00:04]} 71. Nh6 {[%emt 0:00:13]} g4+ {[%emt 0:00:06]} 72. Kxg4 {[%emt 0:00:29]} b4 {[%emt 0:00:04]} 73. cxb4 {[%emt 0:00:06]} axb4 {[%emt 0:00:04]} 74. axb4 {[%emt 0:00:06]} c3 {[%emt 0:00:02]} 75. Bxf7 {[%emt 0:00:24]} 1-0

[Event "Chigorin Memorial 2019"]
[Site "Saint Petersburg"]
[Date "2019.10.11"]
[Round "7.8"]
[White "Pourramezanali, Amirreza"]
[Black "Gareyev, Timur"]
[Result "1/2-1/2"]
[ECO "C55"]
[WhiteElo "2478"]
[BlackElo "2591"]
[Annotator "ChessBase"]
[PlyCount "209"]
[EventDate "2019.10.05"]
[EventType "swiss"]
[EventCountry "RUS"]
[SourceTitle "playchess.com"]
[Source "ChessBase"]
[SourceQuality "1"]
[TimeControl "5400+30"]

1. e4 {[%emt 0:00:00]} e5 {[%emt 0:02:10]} 2. Nf3 {[%emt 0:00:00]} Nc6 {[%emt 0:00:13]} 3. Bc4 {[%emt 0:00:00]} Nf6 {[%emt 0:00:36]} 4. d3 {[%emt 0:00:00]} h6 {[%emt 0:00:30]} 5. O-O {[%emt 0:00:23]} d6 {[%emt 0:00:47]} 6. c3 {[%emt 1:32:37]} g6 {[%emt 1:28:44]} 7. d4 {[%emt 0:00:00]} Qe7 {[%emt 0:00:00]} 8. Re1 {[%emt 0:00:00]} Bg7 {[%emt 0:00:00]} 9. dxe5 {[%emt 0:00:00]} Nxe5 {[%emt 0:00:00]} 10. Nxe5 {[%emt 0:00:00]} dxe5 {[%emt 0:00:00]} 11. Qa4+ {[%emt 0:00:00]} c6 {[%emt 0:00:00]} 12. Qb4 {[%emt 0:00:00]} Bf8 {[%emt 0:00:00]} 13. Qxe7+ {[%emt 0:00:00]} Bxe7 {[%emt 0:00:00]} 14. a4 {[%emt 0:00:00]} a5 {[%emt 0:00:00]} 15. Nd2 {[%emt 0:00:00]} Bc5 {[%emt 0:00:00]} 16. Nf3 {[%emt 0:00:00]} Nd7 {[%emt 0:00:00]} 17. Be3 {[%emt 0:00:00]} Bxe3 {[%emt 0:00:00]} 18. Rxe3 {[%emt 0:00:00]} Ke7 {[%emt 0:00:00]} 19. Rd1 {[%emt 0:00:00]} g5 {[%emt 0:00:00]} 20. Ne1 {[%emt 0:00:00]} Nc5 {[%emt 0:00:00]} 21. b3 {[%emt 0:00:00]} Be6 {[%emt 0:00:00]} 22. Bxe6 {[%emt 0:00:00]} Nxe6 {[%emt 0:00:00]} 23. Nd3 {[%emt 0:00:20]} Rhd8 {[%emt 0:00:00]} 24. Kf1 {[%emt 0:01:49]} Rd7 {[%emt 0:00:00]} 25. Rb1 {[%emt 0:06:44]} f6 {[%emt 0:00:00]} 26. g3 {[%emt 0:00:13]} g4 {[%emt 0:00:00]} 27. b4 {[%emt 0:00:52]} axb4 {[%emt 0:00:00]} 28. Rxb4 {[%emt 0:00:02]} c5 {[%emt 0:00:00]} 29. Rb6 {[%emt 0:00:39]} c4 {[%emt 0:00:00]} 30. Nb4 {[%emt 0:00:40]} Rxa4 {[%emt 0:00:00]} 31. Nd5+ {[%emt 0:00:01]} Kf7 {[%emt 0:00:00]} 32. Re1 {[%emt 0:00:39]} Ra6 {[%emt 0:00:00]} 33. Reb1 {[%emt 0:00:24]} Nc5 {[%emt 0:00:00]} 34. Nxf6 {[%emt 0:00:48]} Rd1+ {[%emt 0:00:00]} 35. Rxd1 {[%emt 0:00:01]} Rxb6 {[%emt 0:00:00]} 36. Nxg4 {[%emt 0:00:06]} Ke6 {[%emt 0:00:00]} 37. Ne3 {[%emt 0:01:22]} Nxe4 {[%emt 0:00:00]} 38. Nxc4 {[%emt 0:00:05]} Rc6 {[%emt 0:00:00]} 39. Na5 {[%emt 0:01:06]} Rc7 {[%emt 0:00:00]} 40. Rd8 {[%emt 0:00:36]} Rf7 {[%emt 0:00:00]} 41. Re8+ {[%emt 0:00:29]} Kd5 {[%emt 0:00:00]} 42. Rd8+ {[%emt 0:00:31]} Kc5 {[%emt 0:00:00]} 43. Re8 {[%emt 0:00:01]} Rxf2+ {[%emt 0:00:00]} 44. Ke1 {[%emt 0:00:01]} Rf5 {[%emt 0:00:00]} 45. Nxb7+ {[%emt 0:00:36]} Kc4 {[%emt 0:01:57]} 46. Re6 {[%emt 0:00:40]} Rh5 {[%emt 0:02:47]} 47. g4 {[%emt 0:00:28]} Rh3 {[%emt 0:01:20]} 48. Kf1 {[%emt 0:01:13]} Kd5 {[%emt 0:09:24]} 49. Ra6 {[%emt 0:00:01]} Rxc3 {[%emt 0:03:49]} 50. Rxh6 {[%emt 0:00:52]} Rc7 {[%emt 0:00:32]} 51. Nd8 {[%emt 0:00:31]} Ng5 {[%emt 0:00:50]} 52. h4 {[%emt 0:00:26]} Nf3 {[%emt 0:00:05]} 53. Rf6 {[%emt 0:00:41]} Nh2+ {[%emt 0:00:37]} 54. Ke2 {[%emt 0:00:18]} Nxg4 {[%emt 0:01:28]} 55. Rg6 {[%emt 0:00:01]} Rc2+ {[%emt 0:00:29]} 56. Kd3 {[%emt 0:00:38]} Rg2 {[%emt 0:00:35]} 57. h5 {[%emt 0:00:06]} Rg3+ {[%emt 0:00:31]} 58. Ke2 {[%emt 0:00:26]} Ke4 {[%emt 0:00:01]} 59. Nf7 {[%emt 0:01:03]} Rg2+ {[%emt 0:00:33]} 60. Kd1 {[%emt 0:00:08]} Kf4 {[%emt 0:00:52]} 61. Nxe5 {[%emt 0:01:11]} Kxe5 {[%emt 0:00:31]} 62. Kc1 {[%emt 0:00:05]} Kf4 {[%emt 0:00:28]} 63. h6 {[%emt 0:00:58]} Rh2 {[%emt 0:00:02]} 64. h7 {[%emt 0:00:06]} Rxh7 {[%emt 0:00:05]} 65. Kd2 {[%emt 0:00:06]} Ne5 {[%emt 0:00:32]} 66. Rg8 {[%emt 0:00:16]} Ke4 {[%emt 0:00:02]} 67. Re8 {[%emt 0:00:08]} Rc7 {[%emt 0:00:42]} 68. Re6 {[%emt 0:00:27]} Rc8 {[%emt 0:00:26]} 69. Re7 {[%emt 0:00:24]} Kd4 {[%emt 0:00:11]} 70. Rh7 {[%emt 0:00:08]} Nc4+ {[%emt 0:00:09]} 71. Ke2 {[%emt 0:00:05]} Re8+ {[%emt 0:00:16]} 72. Kf2 {[%emt 0:00:04]} Ke4 {[%emt 0:00:04]} 73. Ra7 {[%emt 0:00:58]} Rf8+ {[%emt 0:00:08]} 74. Ke2 {[%emt 0:00:31]} Re8 {[%emt 0:00:54]} 75. Kf2 {[%emt 0:00:08]} Nb2 {[%emt 0:00:15]} 76. Ke2 {[%emt 0:00:26]} Kd4+ {[%emt 0:00:10]} 77. Kf3 {[%emt 0:00:06]} Re3+ {[%emt 0:00:34]} 78. Kg4 {[%emt 0:00:05]} Nc4 {[%emt 0:00:21]} 79. Kg5 {[%emt 0:00:28]} Nb6 {[%emt 0:01:17]} 80. Kg4 {[%emt 0:00:38]} Nd5 {[%emt 0:00:01]} 81. Ra4+ {[%emt 0:00:09]} Ke5 {[%emt 0:00:19]} 82. Ra5 {[%emt 0:00:04]} Rd3 {[%emt 0:00:19]} 83. Rc5 {[%emt 0:00:48]} Rd4+ {[%emt 0:00:13]} 84. Kf3 {[%emt 0:00:57]} Rf4+ {[%emt 0:00:01]} 85. Kg3 {[%emt 0:00:12]} Ra4 {[%emt 0:00:07]} 86. Rc8 {[%emt 0:00:35]} Nf6 {[%emt 0:00:33]} 87. Kf3 {[%emt 0:00:15]} Ra3+ {[%emt 0:00:15]} 88. Ke2 {[%emt 0:00:10]} Kd4 {[%emt 0:00:30]} 89. Rd8+ {[%emt 0:00:08]} Ke4 {[%emt 0:00:04]} 90. Kd2 {[%emt 0:00:10]} Nd5 {[%emt 0:00:34]} 91. Re8+ {[%emt 0:00:21]} Kd4 {[%emt 0:00:07]} 92. Ke2 {[%emt 0:00:04]} Nf6 {[%emt 0:02:05]} 93. Rd8+ {[%emt 0:00:07]} Ke4 {[%emt 0:00:03]} 94. Kd2 {[%emt 0:00:11]} Ra5 {[%emt 0:00:31]} 95. Rh8 {[%emt 0:00:36]} Ra2+ {[%emt 0:00:50]} 96. Kc3 {[%emt 0:00:08]} Nd5+ {[%emt 0:00:10]} 97. Kb3 {[%emt 0:00:04]} Rf2 {[%emt 0:00:57]} 98. Rh4+ {[%emt 0:00:26]} Ke5 {[%emt 0:00:28]} 99. Kc4 {[%emt 0:00:28]} Nf4 {[%emt 0:00:36]} 100. Rh8 {[%emt 0:00:21]} Rc2+ {[%emt 0:00:11]} 101. Kb3 {[%emt 0:00:06]} Rc7 {[%emt 0:00:03]} 102. Rd8 {[%emt 0:01:20]} Ne6 {[%emt 0:01:03]} 103. Rh8 {[%emt 0:00:31]} Nc5+ {[%emt 0:01:01]} 104. Kc4 {[%emt 0:00:19]} Ne4+ {[%emt 0:00:44]} 105. Kd3 {[%emt 0:00:42]} 1/2-1/2

[Event "Chigorin Memorial 2019"]
[Site "Saint Petersburg"]
[Date "2019.10.12"]
[Round "8.1"]
[White "Bocharov, Ivan"]
[Black "Petrosyan, Manuel"]
[Result "1/2-1/2"]
[ECO "C47"]
[WhiteElo "2550"]
[BlackElo "2611"]
[Annotator "ChessBase"]
[PlyCount "81"]
[EventDate "2019.10.05"]
[EventType "swiss"]
[EventCountry "RUS"]
[SourceTitle "playchess.com"]
[Source "ChessBase"]
[SourceQuality "1"]
[TimeControl "5400+30"]

1. e4 {[%emt 0:00:00]} e5 {[%emt 0:04:26]} 2. Nf3 {[%emt 0:00:00]} Nc6 {[%emt 0:00:07]} 3. Nc3 {[%emt 0:00:00]} Nf6 {[%emt 0:00:14]} 4. d4 {[%emt 0:00:00]} exd4 {[%emt 0:00:13]} 5. Nxd4 {[%emt 0:00:00]} Bb4 {[%emt 0:00:36]} 6. Nxc6 {[%emt 0:00:00]} bxc6 {[%emt 0:00:06]} 7. Bd3 {[%emt 0:00:00]} O-O {[%emt 0:00:28]} 8. O-O {[%emt 0:00:00]} d5 {[%emt 0:00:12]} 9. exd5 {[%emt 0:00:00]} cxd5 {[%emt 0:00:08]} 10. Qf3 {[%emt 0:00:12]} Rb8 {[%emt 0:01:57]} 11. Bg5 {[%emt 0:02:00]} c6 {[%emt 0:06:07]} 12. h3 {[%emt 0:00:45]} Bd6 {[%emt 0:01:11]} 13. b3 {[%emt 0:00:02]} h6 {[%emt 0:02:36]} 14. Bf4 {[%emt 0:00:33]} a5 {[%emt 0:03:04]} 15. Rfe1 {[%emt 0:00:56]} Be6 {[%emt 0:07:51]} 16. Ne2 {[%emt 0:03:33]} c5 {[%emt 0:00:20]} 17. Ng3 {[%emt 0:01:30]} Bxf4 {[%emt 0:08:30]} 18. Qxf4 {[%emt 0:00:02]} Rb4 {[%emt 0:00:08]} 19. Qe3 {[%emt 0:08:39]} Qc7 {[%emt 0:06:13]} 20. c3 {[%emt 0:02:35]} Rbb8 {[%emt 0:04:58]} 21. Qf3 {[%emt 0:07:42]} Rfe8 {[%emt 0:09:47]} 22. Nf5 {[%emt 0:06:06]} Bxf5 {[%emt 0:00:51]} 23. Qxf5 {[%emt 0:00:04]} Qd6 {[%emt 0:00:24]} 24. Qf3 {[%emt 0:07:25]} g6 {[%emt 0:04:03]} 25. Re3 {[%emt 0:04:08]} Kg7 {[%emt 0:03:38]} 26. Rae1 {[%emt 0:05:04]} Rxe3 {[%emt 0:00:26]} 27. Qxe3 {[%emt 0:01:24]} a4 {[%emt 0:03:54]} 28. Bc2 {[%emt 0:01:04]} axb3 {[%emt 0:07:32]} 29. axb3 {[%emt 0:00:01]} Re8 {[%emt 0:00:31]} 30. Qd2 {[%emt 0:00:17]} Rxe1+ {[%emt 0:00:12]} 31. Qxe1 {[%emt 0:00:02]} d4 {[%emt 0:00:18]} 32. Qd1 {[%emt 0:05:21]} Qb6 {[%emt 0:04:36]} 33. cxd4 {[%emt 0:01:57]} cxd4 {[%emt 0:00:05]} 34. Bd3 {[%emt 0:00:03]} Nd7 {[%emt 0:00:12]} 35. Qg4 {[%emt 0:01:28]} Qxb3 {[%emt 0:05:57]} 36. Qxd4+ {[%emt 0:00:10]} Nf6 {[%emt 0:00:04]} 37. Bf1 {[%emt 0:00:11]} Qd5 {[%emt 0:00:20]} 38. Qc3 {[%emt 0:00:24]} g5 {[%emt 0:00:21]} 39. Qb2 {[%emt 0:00:05]} Qd6 {[%emt 0:00:25]} 40. Qc3 {[%emt 0:00:05]} Qe6 {[%emt 0:00:13]} 41. Qb2 {[%emt 0:00:07]} 1/2-1/2

[Event "Chigorin Memorial 2019"]
[Site "Saint Petersburg"]
[Date "2019.10.12"]
[Round "8.2"]
[White "Sivuk, Vitaly"]
[Black "Kokarev, Dmitry"]
[Result "1/2-1/2"]
[ECO "E71"]
[WhiteElo "2559"]
[BlackElo "2593"]
[Annotator "ChessBase"]
[PlyCount "80"]
[EventDate "2019.10.05"]
[EventType "swiss"]
[EventCountry "RUS"]
[SourceTitle "playchess.com"]
[Source "ChessBase"]
[SourceQuality "1"]
[TimeControl "5400+30"]

1. d4 {[%emt 0:00:00]} Nf6 {[%emt 0:00:00]} 2. c4 {[%emt 0:00:00]} g6 {[%emt 0:00:00]} 3. Nc3 {[%emt 0:00:00]} Bg7 {[%emt 0:00:00]} 4. e4 {[%emt 0:00:00]} d6 {[%emt 0:00:01]} 5. h3 {[%emt 0:00:07]} O-O {[%emt 0:00:14]} 6. Be3 {[%emt 0:00:08]} e5 {[%emt 0:00:36]} 7. d5 {[%emt 0:00:09]} Na6 {[%emt 0:00:37]} 8. g4 {[%emt 0:00:27]} Nc5 {[%emt 0:00:13]} 9. Qc2 {[%emt 0:01:01]} c6 {[%emt 0:01:29]} 10. g5 {[%emt 0:00:54]} Nh5 {[%emt 0:01:00]} 11. O-O-O {[%emt 0:00:17]} cxd5 {[%emt 0:01:55]} 12. Nxd5 {[%emt 0:00:12]} Ne6 {[%emt 0:09:39]} 13. h4 {[%emt 0:01:34]} Bd7 {[%emt 0:02:06]} 14. Kb1 {[%emt 0:02:17]} Bc6 {[%emt 0:04:22]} 15. Ne2 {[%emt 0:02:20]} Bxd5 {[%emt 0:05:07]} 16. Rxd5 {[%emt 0:09:14]} Nhf4 {[%emt 0:05:28]} 17. Nxf4 {[%emt 0:08:34]} Nxf4 {[%emt 0:00:12]} 18. Bxf4 {[%emt 0:26:45]} exf4 {[%emt 0:00:16]} 19. Bh3 {[%emt 0:00:11]} Qe7 {[%emt 0:04:01]} 20. f3 {[%emt 0:03:05]} b6 {[%emt 0:01:35]} 21. h5 {[%emt 0:08:37]} Be5 {[%emt 0:03:55]} 22. Qg2 {[%emt 0:03:29]} Rfd8 {[%emt 0:06:25]} 23. Qg1 {[%emt 0:08:47]} Rab8 {[%emt 0:01:10]} 24. Rh2 {[%emt 0:01:31]} Rb7 {[%emt 0:01:15]} 25. Rhd2 {[%emt 0:02:34]} Rc7 {[%emt 0:00:48]} 26. Bf1 {[%emt 0:00:44]} Rc5 {[%emt 0:00:30]} 27. Qg4 {[%emt 0:01:06]} Rdc8 {[%emt 0:07:38]} 28. a3 {[%emt 0:00:55]} R8c7 {[%emt 0:01:34]} 29. Ka2 {[%emt 0:00:15]} a5 {[%emt 0:01:23]} 30. Be2 {[%emt 0:04:09]} Kg7 {[%emt 0:01:15]} 31. Bf1 {[%emt 0:00:16]} Kg8 {[%emt 0:00:09]} 32. Be2 {[%emt 0:00:03]} Kg7 {[%emt 0:00:07]} 33. Bf1 {[%emt 0:00:04]} Kg8 {[%emt 0:00:08]} 34. Be2 {[%emt 0:00:03]} Kg7 {[%emt 0:00:06]} 35. Bf1 {[%emt 0:00:03]} Kg8 {[%emt 0:00:14]} 36. Be2 {[%emt 0:00:03]} Kg7 {[%emt 0:00:05]} 37. Bf1 {[%emt 0:00:03]} Kg8 {[%emt 0:00:06]} 38. Be2 {[%emt 0:00:03]} Kg7 {[%emt 0:00:06]} 39. Bf1 {[%emt 0:00:02]} Kg8 {[%emt 0:00:07]} 40. Be2 {[%emt 0:00:02]} Kg7 {[%emt 0:00:08]} 1/2-1/2

[Event "Chigorin Memorial 2019"]
[Site "Saint Petersburg"]
[Date "2019.10.12"]
[Round "8.3"]
[White "Peng, Xiongjian"]
[Black "Ter-Sahakyan, Samvel"]
[Result "1/2-1/2"]
[ECO "A07"]
[WhiteElo "2476"]
[BlackElo "2616"]
[Annotator "RC"]
[PlyCount "117"]
[EventDate "2019.10.05"]
[EventType "swiss"]
[EventCountry "RUS"]
[SourceTitle "playchess.com"]
[Source "ChessBase"]
[SourceQuality "1"]
[TimeControl "5400+30"]

1. Nf3 {[%emt 0:00:00]} d5 {[%emt 0:00:00]} 2. g3 {[%emt 0:00:00]} Bg4 {[%emt 0:05:57]} 3. Bg2 {[%emt 0:00:00]} Nd7 {[%emt 0:00:18]} 4. O-O {[%emt 0:01:07]} c6 {[%emt 0:00:43]} 5. d3 {[%emt 0:00:11]} Ngf6 {[%emt 0:02:14]} 6. h3 {[%emt 0:00:08]} Bh5 {[%emt 0:01:55]} 7. c4 {[%emt 0:00:08]} e6 {[%emt 0:03:15]} 8. cxd5 {[%emt 0:00:07]} exd5 {[%emt 0:00:12]} 9. Nc3 {[%emt 0:00:48]} Bxf3 {[%emt 0:01:02]} 10. Bxf3 {[%emt 0:00:14]} d4 {[%emt 0:00:05]} 11. Ne4 {[%emt 0:01:09]} Nxe4 {[%emt 0:00:06]} 12. dxe4 {[%emt 0:01:43]} Bc5 {[%emt 0:03:15]} 13. b4 {[%emt 0:01:38]} Bb6 {[%emt 0:00:55]} 14. a4 {[%emt 0:05:21]} a5 {[%emt 0:08:29]} 15. bxa5 {[%emt 0:01:50]} Rxa5 {[%emt 0:00:13]} 16. Ba3 {[%emt 0:03:31]} Bc5 {[%emt 0:02:16]} 17. Qb3 {[%emt 0:02:58]} b5 {[%emt 0:23:54]} 18. Bg4 {[%emt 0:19:20]} Bxa3 {[%emt 0:02:56]} 19. Qxa3 {[%emt 0:07:13]} Ne5 {[%emt 0:02:58]} 20. Rfc1 {[%emt 0:14:09]} h5 {[%emt 0:10:36]} 21. Bf3 {[%emt 0:04:07]} h4 {[%emt 0:00:40]} 22. Bg2 {[%emt 0:00:53]} Rxa4 {[%emt 0:11:19]} 23. Qc5 {[%emt 0:00:53]} Qe7 {[%emt 0:05:59]} 24. Rxa4 {[%emt 0:00:26]} bxa4 {[%emt 0:00:04]} 25. f4 {[%emt 0:04:49]} Qxc5 {[%emt 0:04:20]} 26. Rxc5 {[%emt 0:02:12]} Ng6 {[%emt 0:00:19]} 27. f5 {[%emt 0:00:38]} Ne7 {[%emt 0:00:03]} 28. Ra5 {[%emt 0:01:32]} O-O {[%emt 0:00:48]} 29. g4 {[%emt 0:04:55]} Rc8 {[%emt 0:02:23]} 30. e5 {[%emt 0:01:02]} c5 {[%emt 0:00:44]} 31. Kf2 {[%emt 0:00:42]} c4 {[%emt 0:00:53]} 32. Ke1 {[%emt 0:06:57]} Nc6 {[%emt 0:03:51]} 33. Bxc6 {[%emt 0:07:27]} Rxc6 {[%emt 0:00:04]} 34. Rxa4 {[%emt 0:00:20]} Rc5 {[%emt 0:00:07]} 35. Ra8+ {[%emt 0:02:13]} Kh7 {[%emt 0:00:01]} 36. Re8 {[%emt 0:00:06]} c3 {[%emt 0:01:54]} 37. Kd1 {[%emt 0:00:05]} Ra5 {[%emt 0:00:39]} 38. Kc2 {[%emt 0:00:54]} Ra2+ {[%emt 0:00:35]} 39. Kd3 {[%emt 0:00:02]} Rd2+ {[%emt 0:01:40]} 40. Ke4 {[%emt 0:00:05]} Rxe2+ {[%emt 0:00:43]} 41. Kxd4 {[%emt 0:00:03]} Rh2 {[%emt 0:00:27]} 42. Rc8 {[%emt 0:01:16]} c2 {[%emt 0:01:07]} 43. g5 {[%emt 0:03:55]} Rxh3 {[%emt 0:00:29]} 44. Rxc2 {[%emt 0:00:06]} Rh1 {[%emt 0:00:11]} 45. Re2 {[%emt 0:01:37]} Kg8 {[%emt 0:00:53]} 46. e6 {[%emt 0:00:47]} fxe6 {[%emt 0:00:09]} 47. fxe6 {[%emt 0:00:03]} Kf8 {[%emt 0:00:14]} 48. Ke5 {[%emt 0:00:04]} Ke7 {[%emt 0:01:25]} 49. Kf5 {[%emt 0:00:49]} h3 {[%emt 0:00:27]} 50. Kg6 {[%emt 0:01:25]} Rg1 {[%emt 0:00:18]} 51. Rh2 {[%emt 0:01:03]} Rg3 {[%emt 0:00:04]} 52. Kf5 {[%emt 0:00:30]} Re3 {[%emt 0:01:13]} 53. Ra2 {[%emt 0:00:24]} h2 {[%emt 0:00:29]} 54. Rxh2 {[%emt 0:00:40]} Rxe6 {[%emt 0:00:03]} 55. Rh7 {[%emt 0:00:14]} Kf7 {[%emt 0:00:06]} 56. Rxg7+ {[%emt 0:00:07]} Kxg7 {[%emt 0:00:03]} 57. Kxe6 {[%emt 0:00:04]} Kg6 {[%emt 0:00:03]} 58. Ke5 {[%emt 0:00:04]} Kxg5 {[%emt 0:00:05]} 59. Ke4 {[%emt 0:04:26]} 1/2-1/2